[Event "I.A Hrvatska šahovska liga"]
[Site "Veli Lošinj, Croatia"]
[Date "2024.10.05"]
[Round "1.1"]
[White "Predojevic, Borki"]
[Black "Kryvoruchko, Yuriy"]
[Result "1/2-1/2"]
[TimeControl "90 30 40 30"]
[WhiteFideId "930849"]
[BlackFideId "14109182"]
[WhiteElo "2567"]
[BlackElo "2643"]

1. e4 {[%clk 01:28:53]} {[%emt 00:02:06]} e5 {[%clk 01:30:45]} {[%emt
00:00:15]} 2. Nf3 {[%clk 01:28:43]} {[%emt 00:00:40]} Nc6 {[%clk 01:31:09]}
{[%emt 00:00:06]} 3. d4 {[%clk 01:28:44]} {[%emt 00:00:30]} exd4 {[%clk
01:31:27]} {[%emt 00:00:12]} 4. Nxd4 {[%clk 01:29:05]} {[%emt 00:00:09]} Nf6
{[%clk 01:31:48]} {[%emt 00:00:08]} 5. Nxc6 {[%clk 01:29:27]} {[%emt 00:00:09]}
bxc6 {[%clk 01:32:12]} {[%emt 00:00:05]} 6. e5 {[%clk 01:29:49]} {[%emt
00:00:08]} Qe7 {[%clk 01:32:29]} {[%emt 00:00:14]} 7. Qe2 {[%clk 01:28:27]}
{[%emt 00:01:51]} Nd5 {[%clk 01:32:52]} {[%emt 00:00:07]} 8. c4 {[%clk
01:28:51]} {[%emt 00:00:07]} Ba6 {[%clk 01:32:48]} {[%emt 00:00:34]} 9. b3
{[%clk 01:27:54]} {[%emt 00:01:26]} g6 {[%clk 01:32:19]} {[%emt 00:00:59]} 10.
Ba3 {[%clk 01:26:29]} {[%emt 00:01:55]} Nb4 {[%clk 01:32:31]} {[%emt 00:00:18]}
11. Bb2 {[%clk 01:26:51]} {[%emt 00:00:09]} Bg7 {[%clk 01:32:36]} {[%emt
00:00:23]} 12. a3 {[%clk 01:27:12]} {[%emt 00:00:10]} Nd5 {[%clk 01:32:30]}
{[%emt 00:00:35]} 13. Nd2 {[%clk 01:27:33]} {[%emt 00:00:10]} O-O {[%clk
01:31:04]} {[%emt 00:01:56]} 14. O-O-O {[%clk 01:27:53]} {[%emt 00:00:10]} Rfe8
{[%clk 01:31:15]} {[%emt 00:00:19]} 15. Qf3 {[%clk 01:24:56]} {[%emt 00:03:26]}
Nb6 {[%clk 01:30:34]} {[%emt 00:01:12]} 16. Ne4 {[%clk 01:23:24]} {[%emt
00:02:03]} Bxe5 {[%clk 01:30:57]} {[%emt 00:00:07]} 17. Bxe5 {[%clk 01:23:50]}
{[%emt 00:00:03]} Qxe5 {[%clk 01:31:22]} {[%emt 00:00:05]} 18. Nf6+ {[%clk
01:24:17]} {[%emt 00:00:04]} Kh8 {[%clk 01:23:55]} {[%emt 00:07:57]} 19. Nxe8
{[%clk 01:24:01]} {[%emt 00:00:46]} Qa1+ {[%clk 01:24:20]} {[%emt 00:00:04]} 20.
Kc2 {[%clk 01:24:23]} {[%emt 00:00:08]} Qa2+ {[%clk 01:24:45]} {[%emt
00:00:04]} 21. Kc1 {[%clk 01:24:04]} {[%emt 00:00:50]} Qa1+ {[%clk 01:25:05]}
{[%emt 00:00:10]} 22. Kc2 {[%clk 01:24:28]} {[%emt 00:00:06]} Qa2+ {[%clk
01:25:31]} {[%emt 00:00:04]} 23. Kc1 {[%clk 01:24:55]} {[%emt 00:00:04]} Qa1+
{[%clk 01:25:57]} {[%emt 00:00:04]} 1/2-1/2

[Event "I.A Hrvatska šahovska liga"]
[Site "Veli Lošinj, Croatia"]
[Date "2024.10.05"]
[Round "1.2"]
[White "Movsesian, Sergei"]
[Black "Cheparinov, Ivan"]
[Result "1/2-1/2"]
[TimeControl "90 30 40 30"]
[WhiteFideId "310204"]
[BlackFideId "2905540"]
[WhiteElo "2616"]
[BlackElo "2628"]

1. e4 {[%clk 01:30:55]} {[%emt 00:00:04]} c6 {[%clk 01:30:45]} {[%emt
00:00:15]} 2. Nf3 {[%clk 01:29:57]} {[%emt 00:01:28]} d5 {[%clk 01:31:07]}
{[%emt 00:00:08]} 3. Nc3 {[%clk 01:30:23]} {[%emt 00:00:04]} dxe4 {[%clk
01:31:31]} {[%emt 00:00:07]} 4. Nxe4 {[%clk 01:30:49]} {[%emt 00:00:04]} Nf6
{[%clk 01:31:56]} {[%emt 00:00:05]} 5. Qe2 {[%clk 01:30:51]} {[%emt 00:00:27]}
Nxe4 {[%clk 01:31:58]} {[%emt 00:00:29]} 6. Qxe4 {[%clk 01:31:17]} {[%emt
00:00:04]} Nd7 {[%clk 01:31:57]} {[%emt 00:00:30]} 7. Bc4 {[%clk 01:25:34]}
{[%emt 00:06:13]} Nf6 {[%clk 01:32:20]} {[%emt 00:00:07]} 8. Ne5 {[%clk
01:24:47]} {[%emt 00:01:17]} e6 {[%clk 01:32:45]} {[%emt 00:00:06]} 9. Qf4
{[%clk 01:25:14]} {[%emt 00:00:02]} b5 {[%clk 01:26:43]} {[%emt 00:06:33]} 10.
Bb3 {[%clk 01:24:23]} {[%emt 00:01:21]} c5 {[%clk 01:17:06]} {[%emt 00:10:07]}
11. Qf3 {[%clk 01:15:17]} {[%emt 00:09:35]} Qc7 {[%clk 01:15:18]} {[%emt
00:02:18]} 12. Qxa8 {[%clk 01:10:31]} {[%emt 00:05:16]} Qxe5+ {[%clk 01:15:25]}
{[%emt 00:00:24]} 13. Kf1 {[%clk 01:10:23]} {[%emt 00:00:37]} Qc7 {[%clk
01:15:48]} {[%emt 00:00:07]} 14. d3 {[%clk 01:09:27]} {[%emt 00:01:26]} Bd6
{[%clk 01:15:24]} {[%emt 00:00:55]} 15. Qf3 {[%clk 01:08:00]} {[%emt 00:01:57]}
Bb7 {[%clk 01:08:33]} {[%emt 00:07:21]} 16. Qe2 {[%clk 01:06:34]} {[%emt
00:01:56]} h5 {[%clk 01:07:09]} {[%emt 00:01:55]} 17. a4 {[%clk 01:01:31]}
{[%emt 00:05:31]} h4 {[%clk 01:04:01]} {[%emt 00:03:39]} 18. axb5 {[%clk
00:58:33]} {[%emt 00:03:28]} h3 {[%clk 01:04:20]} {[%emt 00:00:11]} 19. f3
{[%clk 00:58:57]} {[%emt 00:00:06]} Bxh2 {[%clk 00:57:36]} {[%emt 00:07:14]} 20.
g3 {[%clk 00:29:02]} {[%emt 00:30:24]} Nh5 {[%clk 00:42:59]} {[%emt 00:15:07]}
21. Qxh2 {[%clk 00:26:33]} {[%emt 00:03:00]} Nxg3+ {[%clk 00:43:24]} {[%emt
00:00:05]} 22. Kg1 {[%clk 00:27:01]} {[%emt 00:00:02]} c4 {[%clk 00:37:10]}
{[%emt 00:06:44]} 23. Be3 {[%clk 00:22:58]} {[%emt 00:04:32]} cxb3 {[%clk
00:36:44]} {[%emt 00:00:56]} 24. Bf2 {[%clk 00:18:52]} {[%emt 00:04:36]} bxc2
{[%clk 00:26:41]} {[%emt 00:10:33]} 25. Qxg3 {[%clk 00:18:41]} {[%emt
00:00:42]} c1=Q+ {[%clk 00:27:07]} {[%emt 00:00:04]} 26. Rxc1 {[%clk 00:19:08]}
{[%emt 00:00:03]} Qxc1+ {[%clk 00:27:34]} {[%emt 00:00:03]} 27. Kh2 {[%clk
00:19:37]} {[%emt 00:00:01]} Qc2 {[%clk 00:26:08]} {[%emt 00:01:56]} 28. Qb8+
{[%clk 00:15:57]} {[%emt 00:04:09]} Bc8 {[%clk 00:26:37]} {[%emt 00:00:02]} 29.
Qxa7 {[%clk 00:16:21]} {[%emt 00:00:06]} Rh5 {[%clk 00:16:12]} {[%emt
00:10:54]} 30. Rg1 {[%clk 00:13:41]} {[%emt 00:03:10]} Qxb2 {[%clk 00:11:27]}
{[%emt 00:05:15]} 31. Rg4 {[%clk 00:09:39]} {[%emt 00:04:32]} Rxb5 {[%clk
00:06:59]} {[%emt 00:04:58]} 32. Rh4 {[%clk 00:08:09]} {[%emt 00:02:00]} g6
{[%clk 00:03:57]} {[%emt 00:03:32]} 33. Rxh3 {[%clk 00:06:11]} {[%emt
00:02:28]} Bb7 {[%clk 00:02:55]} {[%emt 00:01:32]} 34. Kg2 {[%clk 00:02:54]}
{[%emt 00:03:47]} Rg5+ {[%clk 00:01:26]} {[%emt 00:01:59]} 35. Rg3 {[%clk
00:03:20]} {[%emt 00:00:04]} Rf5 {[%clk 00:01:24]} {[%emt 00:00:32]} 36. Rh3
{[%clk 00:02:02]} {[%emt 00:01:49]} Rg5+ {[%clk 00:01:13]} {[%emt 00:00:41]} 37.
Rg3 {[%clk 00:02:30]} Rf5 {[%clk 00:01:38]} {[%emt 00:00:05]} 38. Rh3 {[%clk
00:02:42]} {[%emt 00:00:19]} Kd7 {[%clk 00:01:52]} {[%emt 00:00:15]} 39. Qa4+
{[%clk 00:00:47]} {[%emt 00:02:26]} Bc6 {[%clk 00:01:35]} {[%emt 00:00:46]} 40.
Qa7+ {[%clk 00:31:04]} {[%emt 00:00:13]} Bb7 {[%clk 00:31:47]} {[%emt
00:00:18]} 41. Qa4+ {[%clk 00:27:08]} {[%emt 00:04:26]} Qb5 {[%clk 00:26:42]}
{[%emt 00:05:35]} 42. Qd4+ {[%clk 00:25:32]} {[%emt 00:02:05]} Qd5 {[%clk
00:24:15]} {[%emt 00:02:57]} 43. Qa4+ {[%clk 00:25:42]} {[%emt 00:00:20]} Qb5
{[%clk 00:23:02]} {[%emt 00:01:44]} 44. Qd4+ {[%clk 00:26:05]} {[%emt
00:00:07]} Rd5 {[%clk 00:22:49]} {[%emt 00:00:43]} 45. Qf4 {[%clk 00:17:20]}
{[%emt 00:09:15]} Rg5+ {[%clk 00:09:20]} {[%emt 00:14:00]} 46. Bg3 {[%clk
00:16:33]} {[%emt 00:01:16]} Qb2+ {[%clk 00:09:38]} {[%emt 00:00:12]} 47. Kf1
{[%clk 00:15:37]} {[%emt 00:01:26]} Qb1+ {[%clk 00:09:47]} {[%emt 00:00:22]} 48.
Kg2 {[%clk 00:14:34]} {[%emt 00:01:32]} Qc2+ {[%clk 00:09:43]} {[%emt
00:00:34]} 49. Kg1 {[%clk 00:14:45]} {[%emt 00:00:19]} Qb1+ {[%clk 00:08:35]}
{[%emt 00:01:39]} 50. Kg2 {[%clk 00:15:04]} {[%emt 00:00:10]} Qb2+ {[%clk
00:09:02]} {[%emt 00:00:04]} 51. Kf1 {[%clk 00:15:12]} {[%emt 00:00:20]} Qa1+
{[%clk 00:09:12]} {[%emt 00:00:21]} 52. Kg2 {[%clk 00:13:28]} {[%emt 00:02:14]}
Qa2+ {[%clk 00:09:35]} {[%emt 00:00:07]} 53. Kf1 {[%clk 00:13:32]} {[%emt
00:00:25]} 1/2-1/2

[Event "I.A Hrvatska šahovska liga"]
[Site "Veli Lošinj, Croatia"]
[Date "2024.10.05"]
[Round "1.3"]
[White "Brkic, Ante"]
[Black "Livaic, Leon"]
[Result "1/2-1/2"]
[TimeControl "90 30 40 30"]
[WhiteFideId "14506688"]
[BlackFideId "14531534"]
[WhiteElo "2642"]
[BlackElo "2550"]

1. e4 {[%clk 01:30:58]} {[%emt 00:00:01]} d6 {[%clk 01:30:48]} {[%emt
00:00:13]} 2. d4 {[%clk 01:31:23]} {[%emt 00:00:04]} Nf6 {[%clk 01:31:14]}
{[%emt 00:00:04]} 3. Nc3 {[%clk 01:31:49]} {[%emt 00:00:04]} e5 {[%clk
01:31:40]} {[%emt 00:00:05]} 4. Nf3 {[%clk 01:32:15]} {[%emt 00:00:03]} Nbd7
{[%clk 01:32:04]} {[%emt 00:00:06]} 5. Bc4 {[%clk 01:32:35]} {[%emt 00:00:10]}
Be7 {[%clk 01:32:28]} {[%emt 00:00:07]} 6. a4 {[%clk 01:32:58]} {[%emt
00:00:07]} O-O {[%clk 01:32:50]} {[%emt 00:00:08]} 7. O-O {[%clk 01:32:54]}
{[%emt 00:00:34]} exd4 {[%clk 01:33:06]} {[%emt 00:00:14]} 8. Nxd4 {[%clk
01:31:25]} {[%emt 00:01:58]} Ne5 {[%clk 01:32:41]} {[%emt 00:00:56]} 9. Ba2
{[%clk 01:24:54]} {[%emt 00:07:00]} Nc6 {[%clk 01:32:49]} {[%emt 00:00:22]} 10.
Nxc6 {[%clk 01:16:52]} {[%emt 00:08:33]} bxc6 {[%clk 01:32:08]} {[%emt
00:01:10]} 11. Re1 {[%clk 01:17:18]} {[%emt 00:00:04]} Rb8 {[%clk 01:12:28]}
{[%emt 00:20:10]} 12. Bc4 {[%clk 00:52:06]} {[%emt 00:25:43]} Nd7 {[%clk
01:01:22]} {[%emt 00:11:35]} 13. b3 {[%clk 00:45:14]} {[%emt 00:07:22]} Bf6
{[%clk 01:00:42]} {[%emt 00:01:10]} 14. Bb2 {[%clk 00:44:15]} {[%emt 00:01:29]}
Nc5 {[%clk 00:49:14]} {[%emt 00:11:57]} 15. Qf3 {[%clk 00:34:36]} {[%emt
00:10:09]} Be6 {[%clk 00:46:17]} {[%emt 00:03:28]} 16. Bf1 {[%clk 00:23:43]}
{[%emt 00:11:23]} Be5 {[%clk 00:33:08]} {[%emt 00:13:40]} 17. Nd1 {[%clk
00:18:04]} {[%emt 00:06:08]} Qg5 {[%clk 00:31:20]} {[%emt 00:02:18]} 18. Bxe5
{[%clk 00:14:11]} {[%emt 00:04:24]} Qxe5 {[%clk 00:31:46]} {[%emt 00:00:04]} 19.
Qc3 {[%clk 00:13:54]} {[%emt 00:00:46]} Qxc3 {[%clk 00:27:52]} {[%emt
00:04:24]} 20. Nxc3 {[%clk 00:14:22]} {[%emt 00:00:02]} a5 {[%clk 00:28:02]}
{[%emt 00:00:20]} 21. f3 {[%clk 00:10:43]} {[%emt 00:04:09]} Rfe8 {[%clk
00:23:21]} {[%emt 00:05:11]} 22. Ne2 {[%clk 00:10:38]} {[%emt 00:00:35]} Bd7
{[%clk 00:22:10]} {[%emt 00:01:42]} 23. Rad1 {[%clk 00:07:55]} {[%emt
00:03:12]} g6 {[%clk 00:19:04]} {[%emt 00:03:36]} 24. Nd4 {[%clk 00:07:34]}
{[%emt 00:00:51]} Ne6 {[%clk 00:17:54]} {[%emt 00:01:40]} 25. Kf2 {[%clk
00:07:30]} {[%emt 00:00:34]} Re7 {[%clk 00:15:28]} {[%emt 00:02:57]} 26. Nxe6
{[%clk 00:06:23]} {[%emt 00:01:36]} Bxe6 {[%clk 00:15:33]} {[%emt 00:00:25]} 27.
e5 {[%clk 00:04:53]} {[%emt 00:02:00]} Rd7 {[%clk 00:14:38]} {[%emt 00:01:25]}
28. exd6 {[%clk 00:04:34]} {[%emt 00:00:49]} cxd6 {[%clk 00:14:45]} {[%emt
00:00:23]} 1/2-1/2

[Event "I.A Hrvatska šahovska liga"]
[Site "Veli Lošinj, Croatia"]
[Date "2024.10.05"]
[Round "1.4"]
[White "Jovanovic, Zoran"]
[Black "Martinovic, Sasa"]
[Result "1/2-1/2"]
[TimeControl "90 30 40 30"]
[WhiteFideId "14505320"]
[BlackFideId "14509792"]
[WhiteElo "2525"]
[BlackElo "2563"]

1. e4 {[%clk 01:28:27]} {[%emt 00:02:32]} e6 {[%clk 01:30:57]} {[%emt
00:00:04]} 2. d4 {[%clk 01:28:51]} {[%emt 00:00:06]} d5 {[%clk 01:31:23]}
{[%emt 00:00:04]} 3. Nc3 {[%clk 01:28:44]} {[%emt 00:00:35]} Nf6 {[%clk
01:31:46]} {[%emt 00:00:08]} 4. Bg5 {[%clk 01:28:17]} {[%emt 00:00:57]} dxe4
{[%clk 01:32:11]} {[%emt 00:00:06]} 5. Nxe4 {[%clk 01:28:39]} {[%emt 00:00:06]}
Nbd7 {[%clk 01:32:28]} {[%emt 00:00:15]} 6. Nf3 {[%clk 01:24:34]} {[%emt
00:04:34]} Be7 {[%clk 01:32:47]} {[%emt 00:00:12]} 7. Nxf6+ {[%clk 01:23:16]}
{[%emt 00:01:48]} Bxf6 {[%clk 01:33:10]} {[%emt 00:00:07]} 8. Bxf6 {[%clk
01:18:06]} {[%emt 00:05:39]} Nxf6 {[%clk 01:33:35]} {[%emt 00:00:06]} 9. Bc4
{[%clk 01:13:27]} {[%emt 00:05:08]} O-O {[%clk 01:33:58]} {[%emt 00:00:08]} 10.
Qe2 {[%clk 01:12:55]} {[%emt 00:01:01]} b6 {[%clk 01:32:31]} {[%emt 00:01:58]}
11. O-O {[%clk 01:09:47]} {[%emt 00:03:37]} Bb7 {[%clk 01:32:45]} {[%emt
00:00:16]} 12. Rfd1 {[%clk 01:06:36]} {[%emt 00:03:41]} Qd6 {[%clk 01:30:59]}
{[%emt 00:02:17]} 13. Ba6 {[%clk 01:06:45]} {[%emt 00:00:20]} Bxa6 {[%clk
01:29:02]} {[%emt 00:02:28]} 14. Qxa6 {[%clk 01:06:54]} {[%emt 00:00:20]} Rfd8
{[%clk 01:18:57]} {[%emt 00:10:36]} 15. c3 {[%clk 01:03:44]} {[%emt 00:03:38]}
c5 {[%clk 01:10:36]} {[%emt 00:08:52]} 16. a4 {[%clk 01:00:44]} {[%emt
00:03:30]} Qc7 {[%clk 01:05:24]} {[%emt 00:05:42]} 17. h3 {[%clk 00:52:08]}
{[%emt 00:09:06]} Rab8 {[%clk 01:03:24]} {[%emt 00:02:31]} 18. Qc4 {[%clk
00:50:39]} {[%emt 00:01:59]} Nd5 {[%clk 00:52:35]} {[%emt 00:11:19]} 19. Rd2
{[%clk 00:49:35]} {[%emt 00:01:33]} Rdc8 {[%clk 00:50:45]} {[%emt 00:02:20]} 20.
dxc5 {[%clk 00:36:00]} {[%emt 00:14:05]} bxc5 {[%clk 00:49:58]} {[%emt
00:01:18]} 21. a5 {[%clk 00:35:03]} {[%emt 00:01:26]} h6 {[%clk 00:46:59]}
{[%emt 00:03:30]} 22. g3 {[%clk 00:31:53]} {[%emt 00:03:40]} Rb7 {[%clk
00:45:38]} {[%emt 00:01:50]} 23. Qe2 {[%clk 00:31:00]} {[%emt 00:01:23]} c4
{[%clk 00:34:11]} {[%emt 00:11:58]} 1/2-1/2

[Event "I.A Hrvatska šahovska liga"]
[Site "Veli Lošinj, Croatia"]
[Date "2024.10.05"]
[Round "1.5"]
[White "Kurajica, Bojan"]
[Black "Kozul, Zdenko"]
[Result "1/2-1/2"]
[TimeControl "90 30 40 30"]
[WhiteFideId "14400057"]
[BlackFideId "14502879"]
[WhiteElo "2409"]
[BlackElo "2515"]

1. d4 {[%clk 01:29:58]} {[%emt 00:01:01]} Nf6 {[%clk 01:30:46]} {[%emt
00:00:15]} 2. Nf3 {[%clk 01:30:19]} {[%emt 00:00:08]} g6 {[%clk 01:30:50]}
{[%emt 00:00:26]} 3. g3 {[%clk 01:30:38]} {[%emt 00:00:12]} Bg7 {[%clk
01:30:38]} {[%emt 00:00:41]} 4. Bg2 {[%clk 01:31:02]} {[%emt 00:00:05]} d5
{[%clk 01:29:33]} {[%emt 00:01:37]} 5. O-O {[%clk 01:31:09]} {[%emt 00:00:22]}
O-O {[%clk 01:29:28]} {[%emt 00:00:36]} 6. c3 {[%clk 01:31:09]} {[%emt
00:00:30]} c6 {[%clk 01:27:07]} {[%emt 00:02:51]} 7. Bf4 {[%clk 01:30:10]}
{[%emt 00:01:28]} Qb6 {[%clk 01:24:53]} {[%emt 00:02:45]} 8. Qb3 {[%clk
01:28:14]} {[%emt 00:02:26]} Bg4 {[%clk 01:24:09]} {[%emt 00:01:14]} 9. Re1
{[%clk 01:20:00]} {[%emt 00:08:43]} Bxf3 {[%clk 01:23:47]} {[%emt 00:00:53]} 10.
Bxf3 {[%clk 01:18:21]} {[%emt 00:02:09]} Nbd7 {[%clk 01:24:09]} {[%emt
00:00:08]} 11. Nd2 {[%clk 01:14:06]} {[%emt 00:04:44]} Rfe8 {[%clk 01:21:42]}
{[%emt 00:02:57]} 12. e4 {[%clk 01:08:28]} {[%emt 00:06:08]} dxe4 {[%clk
01:15:02]} {[%emt 00:07:10]} 13. Nxe4 {[%clk 00:59:32]} {[%emt 00:09:26]} Nxe4
{[%clk 01:11:17]} {[%emt 00:04:15]} 14. Rxe4 {[%clk 00:53:52]} {[%emt
00:06:10]} e5 {[%clk 01:11:39]} {[%emt 00:00:39]} 15. dxe5 {[%clk 00:48:09]}
{[%emt 00:06:43]} Nxe5 {[%clk 00:42:38]} {[%emt 00:29:30]} 16. Bxe5 {[%clk
00:48:23]} {[%emt 00:00:16]} Qxb3 {[%clk 00:43:02]} {[%emt 00:00:08]} 17. axb3
{[%clk 00:48:42]} {[%emt 00:00:10]} Rxe5 {[%clk 00:43:31]} {[%emt 00:00:28]}
1/2-1/2

[Event "I.A Hrvatska šahovska liga"]
[Site "Veli Lošinj, Croatia"]
[Date "2024.10.05"]
[Round "1.6"]
[White "Zaja, Ivan"]
[Black "Cvitan, Ognjen"]
[Result "1/2-1/2"]
[TimeControl "90 30 40 30"]
[WhiteFideId "14500450"]
[BlackFideId "14500086"]
[WhiteElo "2421"]
[BlackElo "2410"]

1. d4 {[%clk 01:30:49]} {[%emt 00:00:10]} Nf6 {[%clk 01:29:55]} {[%emt
00:01:05]} 2. c4 {[%clk 01:31:01]} {[%emt 00:00:18]} e6 {[%clk 01:30:11]}
{[%emt 00:00:15]} 3. Nc3 {[%clk 01:30:52]} {[%emt 00:00:39]} Bb4 {[%clk
01:26:50]} {[%emt 00:03:51]} 4. e3 {[%clk 01:30:44]} {[%emt 00:00:37]} O-O
{[%clk 01:26:37]} {[%emt 00:00:43]} 5. Bd3 {[%clk 01:29:48]} {[%emt 00:01:27]}
d5 {[%clk 01:23:41]} {[%emt 00:03:26]} 6. a3 {[%clk 01:28:25]} {[%emt
00:01:53]} dxc4 {[%clk 01:19:16]} {[%emt 00:04:55]} 7. Bxc4 {[%clk 01:28:27]}
{[%emt 00:00:27]} Bd6 {[%clk 01:18:07]} {[%emt 00:01:40]} 8. Nf3 {[%clk
01:22:34]} {[%emt 00:06:23]} Nc6 {[%clk 01:16:00]} {[%emt 00:02:36]} 9. e4
{[%clk 01:21:44]} {[%emt 00:01:21]} e5 {[%clk 01:16:20]} {[%emt 00:00:09]} 10.
d5 {[%clk 01:21:40]} {[%emt 00:00:35]} Ne7 {[%clk 01:16:37]} {[%emt 00:00:12]}
11. Bg5 {[%clk 01:02:02]} {[%emt 00:20:08]} Ng6 {[%clk 01:16:31]} {[%emt
00:00:35]} 12. h3 {[%clk 00:51:16]} {[%emt 00:11:18]} a6 {[%clk 01:16:29]}
{[%emt 00:00:32]} 1/2-1/2

[Event "I.A Hrvatska šahovska liga"]
[Site "Veli Lošinj, Croatia"]
[Date "2024.10.05"]
[Round "1.7"]
[White "Blohberger, Felix"]
[Black "Horvath, Dominik"]
[Result "1/2-1/2"]
[TimeControl "90 30 40 30"]
[WhiteFideId "1632051"]
[BlackFideId "1642561"]
[WhiteElo "2520"]
[BlackElo "2559"]

1. e4 {[%clk 01:30:52]} {[%emt 00:00:07]} e5 {[%clk 01:29:08]} {[%emt
00:01:52]} 2. Nf3 {[%clk 01:31:16]} {[%emt 00:00:06]} Nc6 {[%clk 01:29:31]}
{[%emt 00:00:07]} 3. Bb5 {[%clk 01:31:42]} {[%emt 00:00:05]} a6 {[%clk
01:29:14]} {[%emt 00:00:48]} 4. Ba4 {[%clk 01:32:03]} {[%emt 00:00:08]} Nf6
{[%clk 01:29:39]} {[%emt 00:00:04]} 5. O-O {[%clk 01:32:25]} {[%emt 00:00:08]}
Be7 {[%clk 01:29:51]} {[%emt 00:00:19]} 6. Re1 {[%clk 01:32:41]} {[%emt
00:00:13]} b5 {[%clk 01:30:15]} {[%emt 00:00:06]} 7. Bb3 {[%clk 01:33:05]}
{[%emt 00:00:07]} O-O {[%clk 01:30:38]} {[%emt 00:00:07]} 8. a4 {[%clk
01:33:14]} {[%emt 00:00:20]} b4 {[%clk 01:28:26]} {[%emt 00:02:42]} 9. d4
{[%clk 01:33:14]} {[%emt 00:00:30]} d6 {[%clk 01:28:28]} {[%emt 00:00:29]} 10.
dxe5 {[%clk 01:33:37]} {[%emt 00:00:07]} Nxe5 {[%clk 01:28:51]} {[%emt
00:00:07]} 11. Nxe5 {[%clk 01:33:55]} {[%emt 00:00:11]} dxe5 {[%clk 01:29:16]}
{[%emt 00:00:05]} 12. Qe2 {[%clk 01:33:34]} {[%emt 00:00:51]} Bc5 {[%clk
01:24:59]} {[%emt 00:04:48]} 13. Be3 {[%clk 01:32:42]} {[%emt 00:01:21]} Bd4
{[%clk 01:24:26]} {[%emt 00:01:03]} 14. Bxd4 {[%clk 01:32:49]} {[%emt
00:00:23]} Qxd4 {[%clk 01:24:44]} {[%emt 00:00:11]} 15. Rd1 {[%clk 01:33:09]}
{[%emt 00:00:11]} Bg4 {[%clk 01:23:04]} {[%emt 00:02:11]} 16. Rxd4 {[%clk
01:33:23]} {[%emt 00:00:16]} Bxe2 {[%clk 01:23:28]} {[%emt 00:00:05]} 17. Rxb4
{[%clk 01:31:40]} {[%emt 00:02:14]} a5 {[%clk 01:22:51]} {[%emt 00:01:07]} 18.
Rb7 {[%clk 01:32:03]} {[%emt 00:00:06]} Rfc8 {[%clk 01:23:15]} {[%emt
00:00:06]} 19. Ba2 {[%clk 01:31:31]} {[%emt 00:01:03]} Nxe4 {[%clk 01:22:48]}
{[%emt 00:00:57]} 20. Rb3 {[%clk 01:31:09]} {[%emt 00:00:51]} Bc4 {[%clk
01:22:56]} {[%emt 00:00:22]} 21. Re3 {[%clk 01:31:30]} {[%emt 00:00:09]} Bxa2
{[%clk 01:23:19]} {[%emt 00:00:07]} 22. Rxe4 {[%clk 01:31:20]} {[%emt
00:00:40]} Bxb1 {[%clk 01:23:39]} {[%emt 00:00:10]} 23. Rxb1 {[%clk 01:31:45]}
{[%emt 00:00:05]} f6 {[%clk 01:23:51]} {[%emt 00:00:18]} 24. Rd1 {[%clk
01:31:15]} {[%emt 00:01:00]} Rab8 {[%clk 01:21:25]} {[%emt 00:02:56]} 25. b3
{[%clk 01:31:17]} {[%emt 00:00:28]} Rd8 {[%clk 01:21:35]} {[%emt 00:00:20]} 26.
Rxd8+ {[%clk 01:31:30]} Rxd8 {[%clk 01:22:01]} {[%emt 00:00:22]} 27. Kf1 {[%clk
01:31:52]} {[%emt 00:00:07]} c5 {[%clk 01:22:14]} {[%emt 00:00:18]} 28. Rc4
{[%clk 01:32:13]} {[%emt 00:00:09]} Rd5 {[%clk 01:22:19]} {[%emt 00:00:25]} 29.
Ke2 {[%clk 01:32:37]} {[%emt 00:00:05]} Kf7 {[%clk 01:21:59]} {[%emt 00:00:51]}
30. c3 {[%clk 01:33:02]} {[%emt 00:00:05]} h5 {[%clk 01:21:17]} {[%emt
00:01:12]} 31. b4 {[%clk 01:33:10]} {[%emt 00:00:22]} cxb4 {[%clk 01:21:23]}
{[%emt 00:00:23]} 32. cxb4 {[%clk 01:33:35]} {[%emt 00:00:06]} axb4 {[%clk
01:21:51]} {[%emt 00:00:03]} 1/2-1/2

[Event "I.A Hrvatska šahovska liga"]
[Site "Veli Lošinj, Croatia"]
[Date "2024.10.05"]
[Round "1.8"]
[White "Skoberne, Jure"]
[Black "Cabarkapa, Novak"]
[Result "1/2-1/2"]
[TimeControl "90 30 40 30"]
[WhiteFideId "14604299"]
[BlackFideId "943746"]
[WhiteElo "2525"]
[BlackElo "2464"]

1. c4 {[%clk 01:26:08]} {[%emt 00:04:52]} e5 {[%clk 01:30:26]} {[%emt
00:00:34]} 2. g3 {[%clk 01:26:25]} {[%emt 00:00:13]} Be7 {[%clk 01:29:03]}
{[%emt 00:01:53]} 3. Nc3 {[%clk 01:26:06]} {[%emt 00:00:50]} d6 {[%clk
01:29:09]} {[%emt 00:00:23]} 4. Bg2 {[%clk 01:19:25]} {[%emt 00:07:11]} f5
{[%clk 01:29:16]} {[%emt 00:00:24]} 5. d4 {[%clk 01:12:55]} {[%emt 00:06:59]}
Nf6 {[%clk 01:29:20]} {[%emt 00:00:25]} 6. Nf3 {[%clk 00:58:26]} {[%emt
00:15:00]} e4 {[%clk 01:29:45]} {[%emt 00:00:06]} 7. Ng5 {[%clk 00:58:53]}
{[%emt 00:00:02]} c6 {[%clk 01:25:09]} {[%emt 00:05:06]} 8. d5 {[%clk
00:55:16]} {[%emt 00:04:07]} Nxd5 {[%clk 01:25:02]} {[%emt 00:00:37]} 9. cxd5
{[%clk 00:47:51]} {[%emt 00:07:56]} Bxg5 {[%clk 01:25:22]} {[%emt 00:00:10]} 10.
dxc6 {[%clk 00:36:59]} {[%emt 00:11:22]} Nxc6 {[%clk 01:24:42]} {[%emt
00:01:10]} 11. Bxg5 {[%clk 00:35:13]} {[%emt 00:02:16]} Qxg5 {[%clk 01:25:05]}
{[%emt 00:00:06]} 12. O-O {[%clk 00:34:43]} {[%emt 00:01:00]} Be6 {[%clk
01:06:55]} {[%emt 00:18:41]} 13. Nd5 {[%clk 00:20:31]} {[%emt 00:14:42]} Qd8
{[%clk 00:57:44]} {[%emt 00:09:40]} 14. Qd2 {[%clk 00:19:56]} {[%emt 00:01:06]}
Ne7 {[%clk 00:55:20]} {[%emt 00:02:53]} 15. Nf4 {[%clk 00:16:23]} {[%emt
00:04:04]} Bf7 {[%clk 00:47:46]} {[%emt 00:08:04]} 16. g4 {[%clk 00:11:36]}
{[%emt 00:05:17]} 1/2-1/2